[Event "Asian Amateur-ch Open 2022"]
[Site "Muscat"]
[Date "2022.10.03"]
[Round "6.31"]
[White "Hisoriev, Shorahmat"]
[Black "Ghaith Saeed Alnuaimi"]
[Result "1/2-1/2"]
[ECO "B22"]
[WhiteElo "1681"]
[BlackElo "1269"]
[Annotator "NA RC COMBH"]
[PlyCount "120"]
[EventDate "2022.09.29"]
[EventType "swiss"]
[SourceTitle "playchess.com"]
[Source "ChessBase"]
[SourceQuality "1"]
[TimeControl "5400+30"]

1. e4 {[%emt 0:00:05]} c6 {[%emt 0:01:05]} 2. d4 {[%emt 0:00:31]} d5 {[%emt 0:00:18]} 3. exd5 {[%emt 0:00:42]} cxd5 {[%emt 0:00:01]} 4. Nf3 {[%emt 0:00:48]} Nc6 {[%emt 0:00:14]} 5. c4 {[%emt 0:04:33]} Bg4 {[%emt 0:00:44]} 6. cxd5 {[%emt 0:01:59]} Qxd5 {[%emt 0:00:03]} 7. Nc3 {[%emt 0:00:26]} Qd8 {[%emt 0:00:09]} 8. Be2 {[%emt 0:00:22]} Nf6 {[%emt 0:02:22]} 9. d5 {[%emt 0:02:28]} Bxf3 {[%emt 1:30:04]} 10. Bxf3 {[%emt 0:00:02]} Ne5 {[%emt 0:00:00]} 11. Be2 {[%emt 0:00:37]} g6 {[%emt 0:00:00]} 12. Bf4 {[%emt 0:01:51]} Nfd7 {[%emt 0:00:00]} 13. Qa4 {[%emt 0:02:20]} Bg7 {[%emt 0:00:00]} 14. Be3 {[%emt 0:04:00]} O-O {[%emt 0:00:00]} 15. f4 {[%emt 1:17:16]} Nb6 {[%emt 0:00:00]} 16. Qb3 {[%emt 0:00:00]} Ned7 {[%emt 0:00:00]} 17. Rd1 {[%emt 0:00:00]} Nf6 {[%emt 0:00:00]} 18. O-O {[%emt 0:00:00]} Nc8 {[%emt 0:00:00]} 19. f5 {[%emt 0:00:00]} Nd6 {[%emt 0:00:00]} 20. fxg6 {[%emt 0:00:00]} hxg6 {[%emt 0:00:00]} 21. Bf3 {[%emt 0:00:00]} b5 {[%emt 0:00:00]} 22. a4 {[%emt 0:00:00]} bxa4 {[%emt 0:00:00]} 23. Nxa4 {[%emt 0:00:00]} Rb8 {[%emt 0:00:00]} 24. Qd3 {[%emt 0:00:00]} Nd7 {[%emt 0:00:00]} 25. b3 {[%emt 0:00:00]} Ne5 {[%emt 0:00:00]} 26. Qc2 {[%emt 0:00:00]} Nxf3+ {[%emt 0:00:00]} 27. Rxf3 {[%emt 0:00:00]} Qa5 {[%emt 0:00:00]} 28. Bg5 {[%emt 0:00:00]} Nf5 {[%emt 0:00:00]} 29. Qd3 {[%emt 0:00:00]} Nd4 {[%emt 0:00:00]} 30. Bxe7 {[%emt 0:00:00]} Nxf3+ {[%emt 0:00:00]} 31. Qxf3 {[%emt 0:00:00]} Rfe8 {[%emt 0:00:00]} 32. d6 {[%emt 0:00:00]} Bf8 {[%emt 0:00:00]} 33. Rf1 {[%emt 0:00:00]} Qf5 {[%emt 0:00:00]} 34. Qg3 {[%emt 0:00:00]} Qd5 {[%emt 0:01:21]} 35. Nc3 {[%emt 0:00:00]} Qd4+ {[%emt 0:00:33]} 36. Kh1 {[%emt 0:00:00]} Bxe7 {[%emt 0:00:42]} 37. dxe7 {[%emt 0:00:00]} Rxb3 {[%emt 0:00:50]} 38. Ne2 {[%emt 0:00:00]} Rxg3 {[%emt 0:01:32]} 39. Nxd4 {[%emt 0:00:00]} Re3 {[%emt 0:05:39]} 40. Nc6 {[%emt 0:00:00]} R3xe7 {[%emt 0:00:10]} 41. Nxe7+ {[%emt 0:00:00]} Rxe7 {[%emt 0:00:01]} 42. h3 {[%emt 0:00:00]} a5 {[%emt 0:00:28]} 43. Ra1 {[%emt 0:00:00]} Ra7 {[%emt 0:00:08]} 44. Ra4 {[%emt 0:00:00]} f6 {[%emt 0:00:14]} 45. Kg1 {[%emt 0:00:00]} Kf7 {[%emt 0:00:09]} 46. Kf2 {[%emt 0:00:00]} Ke6 {[%emt 0:00:04]} 47. Ke3 {[%emt 0:00:00]} Kd5 {[%emt 0:00:19]} 48. Kd3 {[%emt 0:00:00]} Kc5 {[%emt 0:00:08]} 49. Kc3 {[%emt 0:00:00]} Kb5 {[%emt 0:00:15]} 50. Rf4 {[%emt 0:00:00]} Rc7+ {[%emt 0:01:23]} 51. Kb3 {[%emt 0:00:00]} Rc6 {[%emt 0:01:55]} 52. h4 {[%emt 0:00:00]} Re6 {[%emt 0:00:26]} 53. g4 {[%emt 0:00:00]} a4+ {[%emt 0:00:36]} 54. Kb2 {[%emt 0:00:00]} Re2+ {[%emt 0:03:49]} 55. Ka3 {[%emt 0:00:00]} Re3+ {[%emt 0:00:08]} 56. Ka2 {[%emt 0:00:00]} Re2+ {[%emt 0:01:21]} 57. Ka3 {[%emt 0:00:00]} Re3+ {[%emt 0:01:06]} 58. Ka2 {[%emt 0:00:00]} Re2+ {[%emt 0:00:34]} 59. Kb1 {[%emt 0:00:00]} Re1+ {[%emt 0:00:35]} 60. Kb2 {[%emt 0:00:00]} Re2+ {[%emt 0:00:00]} 1/2-1/2

[Event "Asian Amateur-ch Open 2022"]
[Site "Muscat"]
[Date "2022.10.03"]
[Round "7.1"]
[White "Zahmati, Sobhan"]
[Black "Mahmoody, M. Sadegh"]
[Result "1/2-1/2"]
[ECO "D78"]
[WhiteElo "1926"]
[BlackElo "1914"]
[Annotator "TA"]
[PlyCount "53"]
[EventDate "2022.09.29"]
[EventType "swiss"]
[EventCountry "OMN"]
[SourceTitle "playchess.com"]
[Source "ChessBase"]
[SourceQuality "1"]
[TimeControl "5400+30"]

{[%evp 11,53,17,32,-10,20,16,50,11,45,50,40,43,96,99,115,115,129,115,116,122,170,164,193,187,193,185,150,83,88,73,111,96,113,115,113,113,128,128,117,87,163,87,131,87]} 1. Nf3 {[%emt 0:00:01]} Nf6 {[%emt 0:00:07]} 2. d4 {[%emt 0:00:11]} d5 {[%emt 0:00:12]} 3. g3 {[%emt 0:00:12]} g6 {[%emt 0:00:05]} 4. Bg2 {[%emt 0:00:08]} Bg7 {[%emt 0:00:01]} 5. O-O {[%emt 0:00:13]} O-O {[%emt 0:00:02]} 6. c4 {[%emt 0:00:07]} c6 {[%emt 0:00:44] 6...c6 scores better than 6...dxc4.} 7. a4 {[%emt 0:00:06][%cal Ba2a4,Ba4a5][%mdl 32] D78: Fianchetto Grünfeld: 6 0-0 c6.} Ne4 {[%emt 0:02:37]} 8. Nc3 {[%emt 0:07:36] [#]} e6 $146 {[%emt 0:06:22]} ({Predecessor:} 8... Nxc3 9. bxc3 dxc4 10. a5 c5 11. Qa4 Nc6 12. a6 cxd4 13. Nxd4 Nxd4 14. cxd4 Rb8 {½-½ (71) Aditya,M (2438)-Ohanyan,E (2324) Paracin 2021}) 9. Bf4 {[%emt 0:33:42] White is slightly better.} (9. Qc2 $5 {[%cal Rc3e4]}) 9... Nxc3 {[%emt 0:04:54]} 10. bxc3 {[%emt 0:00:30]} b6 {[%emt 0:03:54]} 11. a5 {[%emt 0:09:49] [#] Strongly threatening axb6.} b5 {[%emt 0:03:30]} ({Black should play} 11... Ba6 $14) 12. c5 $16 {[%emt 0:02:30]} a6 {[%emt 0:02:35]} 13. Bd6 {[%emt 0:03:31]} Re8 {[%emt 0:00:32]} 14. Ne5 {[%emt 0:00:13] aiming for Bxb8.} Bb7 {[%emt 0:01:25]} 15. e4 {[%emt 0:01:32] White has more active pieces.} f6 {[%emt 0:02:30]} (15... f5 $16 {was worth a try.}) 16. Nd3 $18 {[%emt 0:00:47]} Nd7 {[%emt 0:05:23]} 17. e5 {[%emt 0:02:18]} fxe5 {[%emt 0:09:33]} 18. dxe5 {[%emt 0:01:00]} Bf8 {[%emt 0:07:33]} 19. Bxf8 {[%emt 0:01:11]} ({Better is} 19. h4) 19... Nxf8 {[%emt 0:02:42]} 20. Qg4 {[%emt 0:00:37]} Qe7 {[%emt 0:01:06]} 21. Qd4 {[%emt 0:01:02]} Qc7 {[%emt 0:06:29]} 22. f4 {[%emt 0:01:24]} Re7 {[%emt 0:00:10]} 23. g4 {[%emt 0:01:05][%cal Bg3g4,Bg4g5][%mdl 32]} Rae8 {[%emt 0:03:17]} 24. Rf3 {[%emt 0:03:52]} Bc8 {[%emt 0:00:18]} 25. h4 {[%emt 0:07:04]} Rg7 {[%emt 0:01:01] [#]} (25... h6 $16) 26. Kh2 {[%emt 0:03:15]} (26. g5 $1 $18) 26... h5 {[%emt 0:06:21]} 27. g5 {[%emt 0:03:04] Weighted Error Value: White=0.15 (very precise) /Black=0.23 (precise)} 1/2-1/2

[Event "Asian Amateur-ch Open 2022"]
[Site "Muscat"]
[Date "2022.10.03"]
[Round "7.2"]
[White "Junaid Sohail"]
[Black "Shreyas Seshadri Nallore"]
[Result "1-0"]
[ECO "D38"]
[WhiteElo "1981"]
[BlackElo "1791"]
[Annotator "TA"]
[PlyCount "85"]
[EventDate "2022.09.29"]
[EventType "swiss"]
[EventCountry "OMN"]
[SourceTitle "playchess.com"]
[Source "ChessBase"]
[SourceQuality "1"]
[TimeControl "5400+30"]

{[%evp 11,85,7,12,0,0,0,-14,-5,38,37,37,12,15,-37,113,117,103,73,104,97,117,72,104,102,95,69,80,47,74,78,295,150,163,160,170,149,153,150,155,152,182,184,176,177,184,109,149,143,565,581,569,569,527,433,572,567,798,816,943,922,871,835,1252,1246,1237,1193,4978,3941,29969,29969,29985,29986,29987,29988,29986,29976]} 1. d4 {[%emt 0:00:01]} Nf6 {[%emt 0:00:09]} 2. c4 {[%emt 0:00:01]} e6 {[%emt 0:00:10]} 3. Nf3 {[%emt 0:00:02]} d5 {[%emt 0:00:10]} 4. Nc3 {[%emt 0:00:02]} Bb4 {[%emt 0:00:13]} 5. Qa4+ {[%emt 0:00:04]} Nc6 {[%emt 0:00:08][%cal Bb8c6,Bc6e7,Be7g6,Bg6f4][%mdl 32]} 6. e3 {[%emt 0:00:06]} O-O {[%emt 0:01:11]} 7. Bd3 {[%emt 0:00:09] D38: Queen's Gambit Declined: Ragozin Defence (4 Nf3 Bb4).} dxc4 {[%emt 0:00:44]} 8. Bxc4 {[%emt 0:00:16]} Bd7 {[%emt 0:00:15][%cal Oc6d4] Threatens to win with ...Nxd4!} 9. Qc2 {[%emt 0:00:17] The position is equal.} Ne7 {[%emt 0:05:46] [#]} 10. a3 $146 {[%emt 0:04:30]} ({Predecessor:} 10. O-O c5 11. dxc5 Qc7 12. Bd2 Qxc5 13. Qb3 Nc6 14. a3 Bxc3 15. Bxc3 Na5 16. Bxa5 Qxa5 {0-1 (34) Lorscheid,G (2274)-Volke,K (2483) Germany 2004}) 10... Bxc3+ {[%emt 0:00:24]} 11. bxc3 {[%emt 0:00:06]} Bc6 {[%emt 0:01:27]} 12. Bd3 {[%emt 0:00:33]} (12. Qe2 $11) 12... Qd5 {[%emt 0:03:27]} (12... Bxf3 $15 {keeps the upper hand.} 13. gxf3 c5) 13. O-O $16 {[%emt 0:05:56]} Ng6 {[%emt 0:04:42]} 14. Re1 {[%emt 0:01:24]} Qh5 {[%emt 0:04:58]} 15. e4 {[%emt 0:03:53]} Rfe8 {[%emt 0:10:45]} 16. Bg5 {[%emt 0:10:38]} h6 {[%emt 0:05:00]} 17. Bxf6 {[%emt 0:05:41]} gxf6 {[%emt 0:00:22]} 18. Be2 {[%emt 0:04:01]} Nf4 {[%emt 0:03:00]} 19. Bd1 {[%emt 0:00:01]} Qg4 {[%emt 0:08:45][%csl Gf4][%cal Rg4g2] [#]} 20. g3 {[%emt 0:00:10]} Qh3 $2 {[%emt 0:08:35]} 21. Nh4 {[%emt 0:15:42]} ({Only move:} 21. gxf4 $18 {And now Kh1 would win.} Kh8 22. Kh1) 21... Kh8 {[%emt 0:07:27]} 22. Bf3 {[%emt 0:01:10]} Rg8 {[%emt 0:04:59]} 23. Ng2 {[%emt 0:01:45]} Nxg2 {[%emt 0:01:36]} 24. Bxg2 {[%emt 0:00:02]} Qh5 {[%emt 0:00:14]} 25. c4 {[%emt 0:01:21]} Qg6 {[%emt 0:05:40]} 26. Qb2 {[%emt 0:01:13] d5 is the strong threat.} Rab8 {[%emt 0:00:57]} 27. d5 {[%emt 0:02:43][%cal Bd4d5,Bd5c6][%mdl 32]} Bd7 {[%emt 0:00:27]} 28. Bh3 {[%emt 0:00:37]} (28. Qb4 $18) 28... c6 {[%emt 0:02:35]} 29. Rad1 {[%emt 0:42:36] White is much more active.} Bc8 $2 {[%emt 0:01:42][%mdl 8192]} (29... b6 $16 30. dxe6 Bxe6) 30. dxc6 $18 {[%emt 0:00:00]} b6 {[%emt 0:00:58]} 31. e5 {[%emt 0:00:00]} Ba6 {[%emt 0:01:15]} 32. Qb4 {[%emt 0:00:00]} fxe5 {[%emt 0:02:35]} 33. Qa4 {[%emt 0:00:00]} Rbc8 {[%emt 0:02:30]} 34. Bg2 {[%emt 0:00:00]} Bxc4 {[%emt 0:00:30]} 35. Qxc4 {[%emt 0:00:00]} Rc7 {[%emt 0:00:37]} 36. Rd7 {[%emt 0:00:00]} Rgc8 {[%emt 0:00:08]} 37. Rxc7 {[%emt 0:00:00]} Rxc7 {[%emt 0:00:03]} 38. Qh4 {[%emt 0:00:00] Intending Qd8+ and mate.} f6 {[%emt 0:00:19]} 39. Rd1 {[%emt 0:00:00] Threatening mate with Be4.} Qg7 {[%emt 0:00:23]} 40. Qh5 {[%emt 0:00:00] White mates.} Kh7 {[%emt 0:00:10]} 41. Qe8 {[%emt 0:00:00]} Re7 {[%emt 0:00:04] [#]} 42. Qxe7 $3 {[%emt 0:00:00][%mdl 512]} Qxe7 {[%emt 0:00:04]} 43. Rd7 {[%emt 0:00:00] Weighted Error Value: White=0.21 (precise) /Black=0.65} 1-0

[Event "Asian Amateur-ch Open 2022"]
[Site "Muscat"]
[Date "2022.10.03"]
[Round "7.3"]
[White "Mohammed Tareq Abbood Al-Latoo"]
[Black "Madhusoodanan, K.R."]
[Result "1-0"]
[ECO "A55"]
[WhiteElo "1957"]
[BlackElo "1663"]
[Annotator "TA"]
[PlyCount "81"]
[EventDate "2022.09.29"]
[EventType "swiss"]
[EventCountry "OMN"]
[SourceTitle "playchess.com"]
[Source "ChessBase"]
[SourceQuality "1"]
[TimeControl "5400+30"]

{[%evp 17,81,35,54,43,74,29,31,13,13,14,77,80,82,100,111,75,108,71,116,97,146,43,133,40,140,134,140,140,139,126,150,145,197,157,139,143,151,122,112,80,80,86,86,83,252,252,251,251,483,281,1784,848,29987,29988,29987,629,29989,29990,29990,29991,29991,446,29992,29985,29993,29994]} 1. Nf3 {[%emt 0:00:20]} Nf6 {[%emt 0:01:17]} 2. d4 {[%emt 0:00:13]} d6 {[%emt 0:01:50]} 3. c4 {[%emt 0:01:28]} Nbd7 {[%emt 0:00:35]} 4. Nc3 {[%emt 0:01:17]} e5 {[%emt 0:00:11]} 5. e4 {[%emt 0:01:25]} Be7 {[%emt 0:00:45]} 6. Be2 {[%emt 0:00:36]} O-O {[%emt 0:00:40]} 7. O-O {[%emt 0:13:29]} c6 {[%emt 0:01:32]} 8. d5 {[%emt 0:00:19]} Nc5 {[%emt 0:05:05]} 9. Qc2 {[%emt 0:00:48]} a5 {[%emt 0:02:18]} 10. Be3 {[%emt 0:02:40] A55: Old Indian Defence with Nf3 and e4.} Nfd7 {[%emt 0:03:50]} 11. Ne1 {[%emt 0:02:56] [#]} Bg5 $146 {[%emt 0:00:12]} ({Predecessor:} 11... Na6 12. Nd3 Ndc5 13. Rad1 Nxd3 14. Qxd3 f5 15. f3 f4 16. Bf2 c5 17. g4 h5 {½-½ (52) Mirkovic,S (2096)-Djordjev,B Niska Banja 2004}) 12. Qd2 {[%emt 0:10:22] White is slightly better.} Bxe3 {[%emt 0:01:29]} 13. Qxe3 {[%emt 0:00:20]} f5 {[%emt 0:05:23]} (13... Nf6 $11) 14. exf5 $16 {[%emt 0:03:59]} Rxf5 {[%emt 0:00:22]} 15. Rd1 {[%emt 0:04:03]} Qf8 {[%emt 0:02:40]} 16. Nd3 {[%emt 0:07:22]} Rf6 {[%emt 0:06:41]} 17. Rd2 {[%emt 0:05:34]} Nxd3 {[%emt 0:04:51]} 18. Bxd3 {[%emt 0:01:17]} (18. Rxd3 $6 Nc5 $11) 18... Nc5 {[%emt 0:00:11] [#]} (18... c5 $142) 19. Bc2 {[%emt 0:04:22]} (19. Ne4 $6 Nxe4 20. Bxe4 (20. Qxe4 Bf5 $11) 20... c5 $11) ({Better is} 19. dxc6 $1 $16 {c7 is the strong threat.} bxc6 20. Ne4) 19... Bg4 {[%emt 0:04:54]} (19... Bf5 $14) 20. f3 {[%emt 0:03:50]} (20. dxc6 $16 bxc6 21. Ne4 Nxe4 22. Qxe4) 20... Rc8 {[%emt 0:05:06]} (20... Bf5 $14) 21. Rfd1 {[%emt 0:05:42] White is much more active.} (21. Ne4 $6 Nxe4 22. Bxe4 (22. Qxe4 Bf5 $11) 22... c5 $14) 21... Bh5 {[%emt 0:02:21]} 22. a3 {[%emt 0:04:36][%cal Ba2a3,Ba3b4,Bb4b5][%mdl 32]} ({Don't do} 22. Ne4 $6 Nxe4 23. Bxe4 (23. Qxe4 Bg6 $11) 23... c5 $11) 22... Bg6 {[%emt 0:12:56]} 23. b4 {[%emt 0:04:23]} axb4 {[%emt 0:08:28]} 24. axb4 {[%emt 0:00:10]} Na6 {[%emt 0:00:55]} (24... Bxc2 $16 {was called for.} 25. Rxc2 Na6) 25. Bxg6 {[%emt 0:03:10]} Rxg6 {[%emt 0:00:24]} 26. dxc6 {[%emt 0:02:14]} bxc6 {[%emt 0:01:58]} 27. b5 {[%emt 0:01:45]} Nc5 {[%emt 0:01:12]} 28. Ne4 {[%emt 0:01:47]} Nxe4 {[%emt 0:02:48]} 29. Qxe4 {[%emt 0:00:09]} d5 {[%emt 0:01:06]} 30. cxd5 {[%emt 0:00:56][%cal Bc4d5,Bd5d6,Bd6d7][%mdl 32]} cxb5 $2 {[%emt 0:00:13] [#] This costs Black the game.} (30... Qc5+ $16 31. Kh1 cxb5) 31. d6 $18 {[%emt 0:00:42]} ({But not} 31. Qxe5 Qd6 32. Qxd6 Rxd6 $16) 31... Rd8 {[%emt 0:00:48][%cal Rg6d6]} 32. d7 {[%emt 0:01:04]} ({Weaker is} 32. Qxe5 Qxf3 33. Re1 Qc6 $16) 32... Qf7 $2 {[%emt 0:09:44]} (32... Qe7 33. Rd5 Re6 34. Rxb5 Rd6 35. Rxd6 Qxd6 36. Qc4+ Kf8) 33. Qxe5 {[%emt 0:02:24]} (33. Ra1 $142) 33... Qxf3 {[%emt 0:00:27]} (33... Qe6 34. Qxb5 Qb6+ 35. Qxb6 Rxb6) 34. Rf1 {[%emt 0:01:45]} (34. Re1 $142 Qc6 35. Qe7 Qb6+ 36. Rf2) 34... Qc6 {[%emt 0:01:21]} 35. Qe7 {[%emt 0:01:26][%cal Re7d8]} Qa8 {[%emt 0:04:20]} 36. Rdf2 {[%emt 0:04:53]} (36. Qf7+ $142 Kh8 37. Re1 h5 38. Qxg6 Rf8 39. Qxh5+ Kg8 40. Re8 Qa7+ 41. Kh1) 36... Rf6 {[%emt 0:04:32]} 37. Rxf6 {[%emt 0:00:17]} gxf6 {[%emt 0:00:02]} 38. Qe6+ {[%emt 0:00:31]} Kh8 {[%emt 0:01:23]} 39. Qxf6+ {[%emt 0:00:02]} Kg8 {[%emt 0:00:01]} 40. Rf3 {[%emt 0:03:21][%cal Rf3g3]} Qa7+ {[%emt 0:00:53]} 41. Kh1 {[%emt 0:00:49] Weighted Error Value: White=0.46/Black=0.85} 1-0

[Event "Asian Amateur-ch Open 2022"]
[Site "Muscat"]
[Date "2022.10.03"]
[Round "7.4"]
[White "Hamdan Edrees, Alhamed"]
[Black "Fooladi, Behrooz"]
[Result "0-1"]
[ECO "B52"]
[WhiteElo "1467"]
[BlackElo "1928"]
[Annotator "TA"]
[PlyCount "74"]
[EventDate "2022.09.29"]
[EventType "swiss"]
[EventCountry "OMN"]
[SourceTitle "playchess.com"]
[Source "ChessBase"]
[SourceQuality "1"]
[TimeControl "5400+30"]

{[%evp 18,74,-3,-1,20,3,10,-6,0,-5,-10,-21,-3,-8,0,0,0,-23,-9,-56,-56,-66,-43,-66,-60,-72,-70,-129,-111,-194,-182,-293,-106,-102,-56,-190,-175,-302,-307,-471,-463,-471,-459,-472,-464,-460,-460,-486,-479,-481,-444,-460,-472,-500,-495,-459,-364,-513,-487]} 1. e4 {[%emt 0:00:02]} c5 {[%emt 0:00:04]} 2. Nf3 {[%emt 0:00:16]} d6 {[%emt 0:00:17]} 3. Bb5+ {[%emt 0:00:13]} Bd7 {[%emt 0:00:12]} 4. Bxd7+ {[%emt 0:00:19]} Qxd7 {[%emt 0:00:05]} 5. O-O {[%emt 0:00:29]} Nf6 {[%emt 0:00:33]} 6. Re1 {[%emt 0:00:11]} Nc6 {[%emt 0:00:08]} 7. c3 {[%emt 0:00:17]} e6 {[%emt 0:00:10]} 8. d4 {[%emt 0:00:13]} cxd4 {[%emt 0:00:09]} 9. cxd4 {[%emt 0:00:09]} d5 {[%emt 0:00:11]} 10. e5 {[%emt 0:03:24]} Ng8 {[%emt 0:00:24][%cal Bf6g8,Bg8e7,Be7f5][%mdl 32] B52: Sicilian: Moscow Variation with 3...Bd7.} 11. a3 {[%emt 0:06:12] has lost popularity (11.Nc3).} Nge7 {[%emt 0:00:09]} 12. Nc3 {[%emt 0:00:08]} Nf5 {[%emt 0:00:22] The position is equal.} 13. b4 {[%emt 0:00:29]} Be7 {[%emt 0:02:30]} 14. h3 {[%emt 0:03:07] [#]} Rc8 $146 {[%emt 0:03:01][%cal Oc6b4]} ({Predecessor:} 14... O-O 15. g4 Nh4 16. Nxh4 Bxh4 17. g5 Ne7 18. Qg4 Nf5 19. Be3 Rac8 20. Rac1 Rc4 21. Red1 Rfc8 22. Ne2 Qa4 23. Rxc4 {0-1 (23) Peroutik,J-Kis Kos,L LSS email 2007}) 15. Qd3 {[%emt 0:03:07]} h6 {[%emt 0:03:31]} 16. Rb1 {[%emt 0:01:46]} O-O {[%emt 0:00:13]} 17. Nd1 {[%emt 0:00:12]} Rc7 {[%emt 0:00:40]} 18. Ne3 {[%emt 0:00:16]} (18. Nc3 $11 {was preferrable.}) 18... Nxe3 $1 $15 {[%emt 0:03:58]} 19. Bxe3 {[%emt 0:00:22]} Rfc8 {[%emt 0:00:13]} 20. Rec1 {[%emt 0:00:12]} a6 {[%emt 0:00:34]} 21. Nd2 {[%emt 0:02:28]} Na7 {[%emt 0:11:01]} 22. Nf1 {[%emt 0:00:57]} (22. Nb3 $15) 22... Qb5 $17 {[%emt 0:02:00]} 23. Qd2 {[%emt 0:00:21]} (23. Qd1 $17) 23... Qa4 $19 {[%emt 0:03:43]} 24. Ng3 {[%emt 0:02:52]} (24. Rxc7 {keeps fighting.} Rxc7 25. Qd3) 24... Rc2 $2 {[%emt 0:01:47]} ({Avoid the trap} 24... Qxa3 $2 25. Rxc7 Rxc7 26. Qe2 $19) (24... Rxc1+ $19 {has better winning chances.} 25. Rxc1 Qxa3 26. Rxc8+ Nxc8) 25. Rxc2 $17 {[%emt 0:00:39]} Rxc2 {[%emt 0:00:51]} (25... Qxc2 $17 26. Rc1 Qxc1+ 27. Qxc1 Rxc1+ 28. Bxc1 a5 29. bxa5 Nb5) 26. Qd3 {[%emt 0:00:04] This costs White the game.} (26. Qd1 $1 $15 Nb5 27. Qg4) 26... Nb5 $36 {[%emt 0:01:28][%mdl 2048] Black has strong initiative.} 27. Rb3 {[%emt 0:00:06] [#]} (27. Rc1 $142 Nxa3 28. Ra1 Bxb4 29. Qd1) 27... Ra2 $1 {[%emt 0:01:48][%cal Bc2a2,Ba2a1,Ba1c1][%mdl 32]} 28. Bc1 {[%emt 0:01:37]} (28. Nh5 {was worth a try.}) 28... Ra1 {[%emt 0:00:09]} 29. Ne2 {[%emt 0:00:08]} Bg5 {[%emt 0:01:38]} 30. f4 {[%emt 0:08:53] [#]} Bxf4 {[%emt 0:00:11][%mdl 512]} 31. Nxf4 {[%emt 0:00:05] Black must now prevent Ne2.} Rxc1+ {[%emt 0:00:09]} 32. Kh2 {[%emt 0:00:03] [#]} Nxd4 $1 {[%emt 0:01:07][%mdl 512]} 33. Rc3 {[%emt 0:00:39]} Rxc3 {[%emt 0:00:05]} 34. Qxc3 {[%emt 0:00:06]} Nc6 {[%emt 0:00:24]} 35. Nh5 {[%emt 0:00:11]} Qd1 {[%emt 0:00:34]} 36. Nf4 {[%emt 0:00:38]} Qd4 {[%emt 0:00:41]} 37. Qg3 {[%emt 0:00:03]} (37. Qxd4 {only move.} Nxd4 38. a4) 37... Qxe5 {[%emt 1:04:00] Weighted Error Value: White=0.43/Black=0.16 (very precise)} 0-1

[Event "Asian Amateur-ch Open 2022"]
[Site "Muscat"]
[Date "2022.10.03"]
[Round "7.5"]
[White "Srivatsan Karthikeyan"]
[Black "Dadabaev, Zhanybek"]
[Result "1-0"]
[ECO "B33"]
[WhiteElo "1711"]
[BlackElo "1902"]
[Annotator "TA"]
[PlyCount "75"]
[EventDate "2022.09.29"]
[EventType "swiss"]
[EventCountry "OMN"]
[SourceTitle "playchess.com"]
[Source "ChessBase"]
[SourceQuality "1"]
[TimeControl "5400+30"]

{[%evp 9,75,2,18,-4,67,64,70,70,63,68,75,29,42,32,44,43,57,28,23,18,39,39,147,152,148,158,176,96,110,18,11,-107,-111,-178,-81,-77,-39,-32,-21,-49,-39,-56,0,0,0,0,0,0,0,0,0,0,103,95,275,273,280,168,180,50,44,44,182,180,1198,1189,1166,1108]} 1. e4 {[%emt 0:00:04]} c5 {[%emt 0:00:09]} 2. Nf3 {[%emt 0:00:05]} Nc6 {[%emt 0:00:08]} 3. d4 {[%emt 0:00:05]} cxd4 {[%emt 0:00:12]} 4. Nxd4 {[%emt 0:00:06]} Nf6 {[%emt 0:00:29]} 5. f3 {[%emt 0:00:06]} e5 {[%emt 0:02:12]} 6. Nb5 {[%emt 0:00:04] B33: Sicilian: Pelikan and Sveshnikov Variations.} a6 {[%emt 0:06:03]} (6... d6 $1 $11) 7. Nd6+ $14 {[%emt 0:02:04]} Bxd6 {[%emt 0:00:02]} 8. Qxd6 {[%emt 0:00:06] White is slightly better.} Qe7 {[%emt 0:05:54]} 9. Qxe7+ {[%emt 0:09:21]} Kxe7 {[%emt 0:00:17]} 10. c4 {[%emt 0:03:08] [#] Against d5} (10. Be3 $16) 10... b5 $146 {[%emt 0:05:43]} ({Predecessor:} 10... Nd4 11. Bd3 b5 12. Na3 b4 13. Nc2 Nxc2+ 14. Bxc2 d6 15. Bd2 Be6 16. Bxb4 Bxc4 {0-1 (50) Hoffmann,P (2238)-Becker,M (2312) Germany 2005}) 11. Be3 {[%emt 0:10:11]} bxc4 {[%emt 0:15:00]} 12. Bxc4 {[%emt 0:00:07]} Rb8 {[%emt 0:01:09]} 13. Nd2 {[%emt 0:11:45]} d6 {[%emt 0:07:51]} 14. b3 {[%emt 0:06:59]} Be6 {[%emt 0:09:31]} 15. O-O {[%emt 0:01:50]} ({Of course not} 15. Bxa6 Nb4 16. Be2 Nc2+ 17. Kf2 Nxa1 18. Rxa1 Nd7 $15) 15... Rhc8 {[%emt 0:00:49]} (15... Bxc4 $14 16. Nxc4 Ke6) 16. Bxa6 $16 {[%emt 0:03:08]} Rd8 {[%emt 0:00:18]} 17. Rfc1 {[%emt 0:01:21]} Nb4 {[%emt 0:00:22]} 18. Be2 {[%emt 0:00:06] This bishop pair is nice.} (18. Bf1 $18 Rdc8 19. Nc4) 18... Rdc8 {[%emt 0:03:24]} 19. a3 {[%emt 0:01:53]} (19. Bc4 $16) 19... Nc2 $11 {[%emt 0:00:20] [#]} 20. Rxc2 {[%emt 0:06:47]} Rxc2 $17 {[%emt 0:00:04]} 21. b4 {[%emt 0:00:05]} (21. Bd1 $17 {keeps fighting.} Rc3 22. Bg5) 21... d5 {[%emt 0:01:59]} (21... Rbc8 $19 {White must now prevent ...R8c3.} 22. a4 d5) 22. Bd1 {[%emt 0:01:42]} Rc3 {[%emt 0:02:40]} (22... Rb2 $5 {[%cal Rd5d4]} 23. exd5 (23. Bc5+ Kd8 $17) 23... Bxd5 $17) 23. Bc5+ {[%emt 0:00:05]} Ke8 {[%emt 0:00:43]} 24. Bd6 {[%emt 0:02:26][%csl LRb8,LRe5]} Ra8 {[%emt 0:00:13]} 25. b5 {[%emt 0:04:47]} Nd7 {[%emt 0:01:51]} ({Black should try} 25... Rac8 $15 26. Kf1 (26. Bxe5 Rc1 $17) 26... Rc1 27. Rxc1 Rxc1) 26. Bb4 $36 {[%emt 0:06:09][%mdl 2048] White fights for an advantage.} Rc7 {[%emt 0:10:47]} 27. a4 {[%emt 0:03:16]} Rac8 {[%emt 0:12:36]} 28. Ba3 {[%emt 0:01:46] Inhibits Rc1.} Rc3 {[%emt 0:06:26][%cal Oc3a3] Threatens to win with ...Rxa3!} 29. Kf1 {[%emt 0:00:37]} d4 {[%emt 0:04:02]} 30. a5 {[%emt 0:03:04]} Rd3 {[%emt 0:00:58]} (30... Kd8 $11 {keeps the balance.}) 31. Bb4 $16 {[%emt 0:00:27] Ke2 is the strong threat.} Rxd2 {[%emt 0:01:56]} 32. Bxd2 $18 {[%emt 0:00:07]} Bc4+ {[%emt 0:00:06]} 33. Ke1 {[%emt 0:01:36] Strongly threatening Rc1.} Bxb5 {[%emt 0:00:01]} 34. Bb4 {[%emt 0:00:24]} (34. a6 $18) 34... Rc4 {[%emt 0:01:51]} 35. Rb1 {[%emt 0:00:30]} d3 {[%emt 0:01:05] Prevents Be2.} ({Better is} 35... Ba6 $14) 36. Kd2 {[%emt 0:00:32]} Nc5 $2 {[%emt 0:00:35]} (36... Ba6 37. Ba3 Kd8) 37. Bxc5 {[%emt 0:00:05]} ({Weaker is} 37. Bc3 Ba4 38. Bxe5 Bxd1 $18) 37... Rxc5 {[%emt 0:00:02] [#]} 38. Rxb5 $1 {[%emt 0:00:06][%mdl 512] Weighted Error Value: White=0.33/Black=0.36} 1-0